fUSD/lending_fUSD_20250514
["ID","MTS","AMOUNT","RATE_DAILY","PERIOD"]
[361061729,1747225843707,-400.0,0.00010983,2]
[361061730,1747225843718,-1267.92,0.00010983,2]
[361061731,1747225843728,-400.0,0.00010983,2]
[361061732,1747225843923,-400.0,0.00010983,2]
[361061733,1747225843966,-400.0,0.00010983,2]
[361061734,1747225843976,-400.0,0.00010983,2]
[361061735,1747225843985,-464.26,0.00010983,2]
[361061736,1747225843995,-400.0,0.00010983,2]
[361061737,1747225844004,-400.0,0.00010983,2]
[361061738,1747225844014,-400.0,0.00010983,2]
[361061739,1747225844023,-400.0,0.00010983,2]
[361061740,1747225844032,-400.0,0.00010983,2]
[361061741,1747225844042,-400.00102525,0.00010983,2]
[361061742,1747225844051,-423.04,0.00010983,2]
[361061743,1747225844061,-400.0,0.00010983,2]
[361061744,1747225844070,-419.09,0.00010983,2]
[361061745,1747225844079,-400.0,0.00010983,2]
[361061746,1747225844089,-400.0,0.00010983,2]
[361061747,1747225844098,-400.0,0.00010983,2]
[361061748,1747225844108,-407.01879712,0.00010983,2]
[361061749,1747225844117,-400.0,0.00010983,2]
[361061750,1747225844128,-400.0,0.00010983,2]
[361061751,1747225844137,-876.06,0.00010983,2]
[361061752,1747225844147,-400.0,0.00010983,2]
[361061753,1747225844156,-400.0,0.00010983,2]
[361061754,1747225844165,-486.66,0.00010983,2]
[361061755,1747225844174,-400.0,0.00010983,2]
[361061756,1747225844183,-400.0,0.00010983,2]
[361061757,1747225844192,-400.0,0.00010983,2]
[361061758,1747225844201,-400.0,0.00010983,2]
[361061759,1747225844210,-400.0,0.00010983,2]
[361061760,1747225844220,-711.17,0.00010983,2]
[361061761,1747225844229,-528.43955498,0.00010983,2]
[361061762,1747225844238,-400.0,0.00010983,2]
[361061763,1747225844248,-400.0,0.00010983,2]
[361061764,1747225844257,-832.08,0.00010983,2]
[361061765,1747225844267,-400.0,0.00010983,2]
[361061766,1747225844277,-400.0,0.00010983,2]
[361061767,1747225844286,-400.0,0.00010983,2]
[361061768,1747225844295,-400.0,0.00010983,2]
[361061769,1747225844304,-507.68,0.00010983,2]
[361061770,1747225844314,-965.85,0.00010983,2]
[361061771,1747225844323,-400.0,0.00010983,2]
[361061772,1747225844332,-400.0,0.00010983,2]
[361061773,1747225844342,-187.01310451,0.00010983,2]
[361061774,1747225844351,-2256.54,0.00010983,2]
[361061775,1747225844360,-1066.68,0.00010983,2]
[361061776,1747225844370,-443.25,0.00010983,2]
[361061777,1747225844380,-5763.12,0.00010983,2]
[361061778,1747225844389,-400.0,0.00010983,2]
[361061779,1747225844399,-400.0,0.00010983,2]
[361061780,1747225844408,-400.0,0.00010983,2]
[361061781,1747225844417,-4054.26,0.00010983,2]
[361061782,1747225844426,-400.0,0.00010983,2]
[361061783,1747225844436,-400.0,0.00010983,2]
[361061784,1747225844445,-439.4,0.00010983,2]
[361061785,1747225844457,-464.67,0.00010983,2]
[361061786,1747225844470,-400.0,0.00010983,2]
[361061787,1747225844480,-634.31,0.00010983,2]
[361061788,1747225844489,-1010.11,0.00010983,2]
[361061789,1747225844499,-4675.64,0.00010983,2]
[361061790,1747225844508,-400.0,0.00010983,2]
[361061791,1747225844517,-400.0,0.00010983,2]
[361061792,1747225844527,-400.0,0.00010983,2]
[361061793,1747225844536,-400.0,0.00010983,2]
[361061794,1747225844545,-400.0,0.00010983,2]
[361061795,1747225844554,-565.44,0.00010983,2]
[361061796,1747225844563,-400.0,0.00010983,2]
[361061797,1747225844572,-7400.02,0.00010983,2]
[361061798,1747225844582,-593.97,0.00010983,2]
[361061799,1747225844591,-400.0,0.00010983,2]
[361061800,1747225844601,-400.0,0.00010983,2]
[361061801,1747225844610,-400.0,0.00010983,2]
[361061802,1747225844621,-400.0,0.00010983,2]
[361061803,1747225844631,-524.97964838,0.00010983,2]
[361061804,1747225844640,-400.0,0.00010983,2]
[361061805,1747225844650,-1903.54,0.00010983,2]
[361061806,1747225844660,-269.77,0.00010983,2]
[361061807,1747225844671,-924.61,0.00010983,2]
[361061808,1747225844682,-400.0,0.00010983,2]
[361061809,1747225844691,-400.0,0.00010983,2]
[361061810,1747225844700,-400.0,0.00010983,2]
[361061811,1747225844710,-400.0,0.00010983,2]
[361061812,1747225844721,-329.5340329,0.00010983,2]
[361061813,1747225844731,-400.0,0.00010983,2]
[361061814,1747225844742,-400.0,0.00010983,2]
[361061815,1747225844752,-400.0,0.00010983,2]
[361061816,1747225844762,-400.0,0.00010983,2]
[361061817,1747225844772,-652.01,0.00010983,2]
[361061818,1747225844782,-669.7,0.00010983,2]
[361061819,1747225844791,-400.0,0.00010983,2]
[361061820,1747225844801,-400.0,0.00010983,2]
[361061821,1747225844810,-523.32,0.00010983,2]
[361061822,1747225844819,-400.0,0.00010983,2]
[361061823,1747225844829,-400.0,0.00010983,2]
[361061824,1747225844838,-400.0,0.00010983,2]
[361061825,1747225844848,-920.11,0.00010983,2]
[361061826,1747225844857,-400.0,0.00010983,2]
[361061827,1747225844867,-1884.43,0.00010983,2]
[361061828,1747225844878,-1830.06,0.00010983,2]
[361061829,1747225844887,-400.0,0.00010983,2]
[361061830,1747225844897,-400.0,0.00010983,2]
[361061831,1747225844906,-802.74,0.00010983,2]
[361061832,1747225844916,-400.0,0.00010983,2]
[361061833,1747225844926,-400.0,0.00010983,2]
[361061834,1747225844936,-865.86,0.00010983,2]
[361061835,1747225844946,-400.0,0.00010983,2]
[361061836,1747225844956,-432.21659453,0.00010983,2]
[361061837,1747225844966,-977.64,0.00010983,2]
[361061838,1747225844975,-526.57980561,0.00010983,2]
[361061839,1747225844985,-400.0,0.00010983,2]
[361061840,1747225844994,-358.0,0.00010983,2]
[361061841,1747225845005,-400.0,0.00010983,2]
[361061842,1747225845014,-400.0,0.00010983,2]
[361061843,1747225845025,-430.31,0.00010983,2]
[361061844,1747225845035,-1820.55,0.00010983,2]
[361061845,1747225845046,-400.0,0.00010983,2]
[361061846,1747225845055,-400.0,0.00010983,2]
[361061847,1747225845064,-801.08,0.00010983,2]
[361061848,1747225845074,-400.0,0.00010983,2]
[361061849,1747225845083,-400.0,0.00010983,2]
[361061850,1747225845093,-400.0,0.00010983,2]
[361061851,1747225845102,-876.03,0.00010983,2]
[361061852,1747225845111,-400.0,0.00010983,2]
[361061853,1747225845122,-400.0,0.00010983,2]
[361061854,1747225845132,-400.0,0.00010983,2]
[361061855,1747225845141,-400.0,0.00010983,2]
[361061856,1747225845151,-429.36,0.00010983,2]
[361061857,1747225845160,-400.0,0.00010983,2]
[361061858,1747225845172,-400.0,0.00010983,2]
[361061859,1747225845182,-701.81,0.00010983,2]
[361061860,1747225845191,-807.27,0.00010983,2]
[361061861,1747225845201,-400.0,0.00010983,2]
[361061862,1747225845210,-400.0,0.00010983,2]
[361061863,1747225845219,-471.42,0.00010983,2]
[361061864,1747225845228,-393.68379781,0.00010983,2]
[361061865,1747225845237,-400.0,0.00010983,2]
[361061866,1747225845247,-1312.26,0.00010983,2]
[361061867,1747225845256,-400.0,0.00010983,2]
[361061868,1747225845266,-400.0,0.00010983,2]
[361061869,1747225845275,-400.0,0.00010983,2]
[361061870,1747225845284,-1533.45,0.00010983,2]
[361061871,1747225845293,-400.0,0.00010983,2]
[361061872,1747225845302,-448.66,0.00010983,2]
[361061873,1747225845312,-400.0,0.00010983,2]
[361061874,1747225845321,-400.0,0.00010983,2]
[361061875,1747225845330,-727.18,0.00010983,2]
[361061876,1747225845339,-549.55,0.00010983,2]
[361061877,1747225845348,-422.63769423,0.00010983,2]
[361061878,1747225845358,-400.0,0.00010983,2]
[361061879,1747225845367,-698.56,0.00010983,2]
[361061880,1747225845378,-400.0,0.00010984,2]
[361061881,1747225845387,-400.0,0.00010984,2]
[361061882,1747225845396,-883.49,0.00010984,2]
[361061883,1747225845406,-190.08696304,0.00010984,2]
[361061884,1747225845415,-400.0,0.00010984,2]
[361061885,1747225845424,-556.33,0.00010984,2]
[361061886,1747225845433,-995.41,0.00010984,2]
[361061887,1747225845442,-282.4942183,0.00010984,2]
[361061888,1747225845452,-400.0,0.00010984,2]
[361061889,1747225845461,-400.0,0.00010984,2]
[361061891,1747225845470,-400.0,0.00010984,2]
[361061892,1747225845480,-400.0,0.00010984,2]
[361061893,1747225845488,-400.0,0.00010984,2]
[361061894,1747225845497,-400.0,0.00010984,2]
[361061895,1747225845507,-400.0,0.00010984,2]
[361061896,1747225845517,-204.20824551,0.00010984,2]
[361061897,1747225845526,-400.0,0.00010984,2]
[361061898,1747225845536,-1279.93,0.00010984,2]
[361061899,1747225845545,-400.0,0.00010984,2]
[361061900,1747225845555,-400.0,0.00010984,2]
[361061901,1747225845564,-400.0,0.00010984,2]
[361061902,1747225845574,-400.0,0.00010984,2]
[361061903,1747225845584,-428.72,0.00010984,2]
[361061904,1747225845594,-400.0,0.00010984,2]
[361061905,1747225845603,-400.0,0.00010984,2]
[361061906,1747225845613,-400.0,0.00010984,2]
[361061907,1747225845622,-973.73,0.00010984,2]
[361061908,1747225845632,-400.0,0.00010984,2]
[361061909,1747225845641,-864.82,0.00010984,2]
[361061910,1747225845651,-400.0,0.00010984,2]
[361061911,1747225845660,-400.0,0.00010984,2]
[361061912,1747225845671,-400.0,0.00010984,2]
[361061913,1747225845681,-400.0,0.00010984,2]
[361061914,1747225845689,-155.4402479,0.00010984,2]
[361061915,1747225845698,-717.33,0.00010984,2]
[361061916,1747225845706,-400.0,0.00010984,2]
[361061917,1747225845716,-400.0,0.00010984,2]
[361061918,1747225845724,-400.0,0.00010984,2]
[361061919,1747225845732,-400.0,0.00010984,2]
[361061920,1747225845742,-400.0,0.00010984,2]
[361061921,1747225845751,-400.0,0.00010984,2]
[361061922,1747225845759,-400.0,0.00010984,2]
[361061923,1747225845768,-400.0,0.00010984,2]
[361061924,1747225845777,-400.0,0.00010984,2]
[361061925,1747225845786,-400.0,0.00010984,2]
[361061926,1747225845796,-400.0,0.00010984,2]
[361061927,1747225845806,-400.0,0.00010984,2]
[361061928,1747225845815,-400.0,0.00010984,2]
[361061929,1747225845824,-234.84293843,0.00010984,2]
[361061930,1747225845835,-400.0,0.00010984,2]
[361061931,1747225845844,-400.0,0.00010984,2]
[361061932,1747225845854,-400.0,0.00010984,2]
[361061933,1747225845863,-400.0,0.00010984,2]
[361061934,1747225845874,-400.0,0.00010984,2]
[361061935,1747225845884,-400.0,0.00010984,2]
[361061936,1747225845894,-400.0,0.00010984,2]
[361061937,1747225845903,-400.0,0.00010984,2]
[361061938,1747225845913,-400.74,0.00010984,2]
[361061939,1747225845924,-626.07,0.00010984,2]
[361061940,1747225845934,-400.0,0.00010984,2]
[361061941,1747225845944,-506.3428026,0.00010984,2]
[361061942,1747225845954,-550.52,0.00010984,2]
[361061943,1747225845964,-400.0,0.00010984,2]
[361061944,1747225845974,-519.46,0.00010984,2]
[361061945,1747225845984,-400.0,0.00010984,2]
[361061946,1747225845994,-400.0,0.00010984,2]
[361061947,1747225846003,-400.0,0.00010984,2]
[361061948,1747225846013,-400.0,0.00010984,2]
[361061949,1747225846023,-1672.22,0.00010984,2]
[361061950,1747225846033,-400.0,0.00010984,2]
[361061951,1747225846044,-930.65,0.00010984,2]
[361061952,1747225846054,-400.0,0.00010984,2]
[361061953,1747225846063,-400.0,0.00010984,2]
[361061954,1747225846072,-387.35247864,0.0001099,2]
[361061955,1747225846082,-387.35247864,0.0001099,2]
[361061956,1747225846093,-151.0,0.00010993,2]
[361061957,1747225846105,-151.0,0.00010993,2]
[361061958,1747225846116,-551.63474627,0.00010993,2]
[361061959,1747225846127,-668.65185757,0.00010993,2]
[361061960,1747225846136,-300.0,0.00010999,2]
[361061961,1747225846145,-408.57229255,0.00010999,2]
[361061962,1747225846154,-1654958.98726343,0.00011,2]
[361061974,1747225846711,-262.975,0.00011,2]
[361061975,1747225846723,-520.35,0.00011,2]
[361061976,1747225846843,-400.0,0.00010982,2]
[361061977,1747225846853,-9451.16035848,0.00011,2]
[361061978,1747225847469,-16330.06932798,0.00011,2]
[361061979,1747225847507,-7877.74515281,0.00011,2]
[361061980,1747225848527,-190.8822678,0.000109,2]
[361061981,1747225848538,-400.0,0.00010981,2]
[361061982,1747225848548,-9495.36367807,0.00011,2]
[361061983,1747225848558,-5303.65284892,0.00011,2]
[361061984,1747225848569,-19780.16522444,0.00011,2]
[361061985,1747225848583,-52040.82626044,0.00011,2]
[361061986,1747225848695,-915.23150938,0.00011,2]
[361061987,1747225849973,-505.27,0.00010981,2]
[361061988,1747225849983,-8.14482976,0.00010981,2]
[361061989,1747225850009,-391.85517024,0.00010981,2]
[361061990,1747225850019,-400.0,0.00010982,2]
[361061991,1747225850029,-1252.14482976,0.00011,2]
[361061992,1747225850041,-8798.36379743,0.00011,2]
[361061993,1747225850167,-400.0,0.00010981,2]
[361061994,1747225850177,-511.00001,0.00011,2]
[361061995,1747225850189,-54485.20850861,0.00011,2]
[361061996,1747225909188,150.0,0.00010032,7]
[361062003,1747226442073,150.0,0.000135,5]
[361062004,1747226638964,306.0,0.00025,60]
[361062005,1747226689602,3078.65397719,9.517e-05,2]
[361062006,1747226689625,10000.0,9.517e-05,2]
[361062007,1747226689648,10000.0,9.517e-05,2]
[361062008,1747226689671,821.34602281,9.517e-05,2]
[361062009,1747226708094,1000.0,9.464e-05,2]
[361062013,1747226799288,306.0,0.00025,60]
[361062014,1747226823534,165.15,9.729e-05,2]
[361062015,1747226862520,476.24,8.219e-05,2]
[361062024,1747226968569,7537.26397719,9.452e-05,2]
[361062025,1747226968592,1437.89602281,9.452e-05,2]
[361062029,1747227029049,250.0,9.438e-05,2]
[361062033,1747227031800,-164.42150949,9.908e-05,2]
[361062034,1747227031810,-520.84627838,0.0001,2]
[361062035,1747227031859,-1143.49711049,0.0001,2]
[361062036,1747227031875,-343.98,0.00010009,2]
[361062037,1747227031896,-343.98,0.00010011,2]
[361062038,1747227031907,-343.98,0.00010014,2]
[361062039,1747227031917,-343.98,0.00010016,2]
[361062040,1747227031926,-343.98,0.00010019,2]
[361062041,1747227031935,-343.98,0.00010022,2]
[361062042,1747227031944,-343.98,0.00010024,2]
[361062043,1747227031953,-343.98,0.00010027,2]
[361062044,1747227031963,-343.98,0.0001003,2]
[361062045,1747227031972,-343.98,0.00010032,2]
[361062046,1747227031981,-343.98,0.00010035,2]
[361062047,1747227031991,-343.98,0.00010037,2]
[361062048,1747227032001,-343.98,0.0001004,2]
[361062049,1747227032011,-343.98,0.00010043,2]
[361062050,1747227032022,-343.98,0.00010045,2]
[361062051,1747227032031,-221.80288951,0.00010048,2]
[361062052,1747227032043,-122.17711049,0.00010048,2]
[361062053,1747227032053,-343.98,0.00010051,2]
[361062054,1747227032062,-343.98,0.00010053,2]
[361062055,1747227032072,-1200.0,0.00010055,2]
[361062056,1747227032082,-343.98,0.00010056,2]
[361062057,1747227032091,-47.82243705,0.00010058,2]
[361062058,1747227032105,-296.15756295,0.00010058,2]
[361062059,1747227032115,-289.14641934,0.00010186,2]
[361062060,1747227032126,-10.85358066,0.00010186,2]
[361062061,1747227032136,-165.02,0.00010188,2]
[361062062,1747227032145,-150.0,0.00010188,2]
[361062063,1747227032156,-133.18850695,0.00010252,2]
[361062064,1747227032195,-161.66149305,0.00010252,2]
[361062065,1747227032205,-297.35649939,0.00010447,2]
[361062068,1747227032230,-178.88350061,0.00010447,2]
[361062070,1747227032240,-1000.0,0.00010647,2]
[361062072,1747227032249,-164.42150949,0.00010863,2]
[361062074,1747227032259,-1552.00526686,0.000109,2]
[361062076,1747227032268,-1000.0,0.000109,2]
[361062078,1747227032278,-189.11006275,0.000109,2]
[361062081,1747227032287,-225.51251893,0.000109,2]
[361062083,1747227032296,-190.8822678,0.000109,2]
[361062086,1747227032305,-14264.42242141,0.000109,2]
[361062088,1747227032314,-150.0,0.00010959,2]
[361062091,1747227032323,-207.4,0.00010959,2]
[361062094,1747227032333,-500.0,0.00010963,2]
[361062096,1747227032343,-500.0,0.00010963,2]
[361062098,1747227032352,-500.0,0.00010963,2]
[361062100,1747227032361,-500.0,0.00010963,2]
[361062102,1747227032371,-500.0,0.00010963,2]
[361062104,1747227032380,-242.09570601,0.00010963,2]
[361062106,1747227032390,-500.0,0.00010963,2]
[361062108,1747227032399,-500.0,0.00010963,2]
[361062109,1747227032411,-500.0,0.00010963,2]
[361062110,1747227032421,-500.0,0.00010963,2]
[361062111,1747227032431,-500.0,0.00010963,2]
[361062112,1747227032440,-500.0,0.00010963,2]
[361062113,1747227032450,-500.0,0.00010963,2]
[361062114,1747227032459,-500.0,0.00010963,2]
[361062115,1747227032469,-500.0,0.00010963,2]
[361062116,1747227032478,-500.0,0.00010963,2]
[361062117,1747227032488,-500.0,0.00010963,2]
[361062118,1747227032497,-500.0,0.00010963,2]
[361062119,1747227032507,-500.0,0.00010963,2]
[361062120,1747227032516,-500.0,0.00010963,2]
[361062121,1747227032526,-500.0,0.00010963,2]
[361062122,1747227032535,-500.0,0.00010963,2]
[361062123,1747227032544,-500.0,0.00010963,2]
[361062124,1747227032554,-500.0,0.00010963,2]
[361062125,1747227032563,-500.0,0.00010963,2]
[361062126,1747227032573,-500.0,0.00010963,2]
[361062127,1747227032582,-500.0,0.00010963,2]
[361062128,1747227032592,-500.0,0.00010963,2]
[361062129,1747227032602,-500.0,0.00010963,2]
[361062130,1747227032611,-437.57354753,0.00010963,2]
[361062131,1747227032620,-500.0,0.00010963,2]
[361062132,1747227032630,-500.0,0.00010963,2]
[361062133,1747227032639,-500.0,0.00010963,2]
[361062134,1747227032649,-500.0,0.00010963,2]
[361062135,1747227032661,-500.0,0.00010963,2]
[361062136,1747227032671,-500.0,0.00010963,2]
[361062137,1747227032680,-500.0,0.00010963,2]
[361062138,1747227032690,-500.0,0.00010963,2]
[361062139,1747227032700,-417.04619745,0.00010963,2]
[361062140,1747227032710,-500.0,0.00010963,2]
[361062141,1747227032719,-500.0,0.00010963,2]
[361062142,1747227032729,-500.0,0.00010963,2]
[361062143,1747227032738,-500.0,0.00010963,2]
[361062144,1747227032747,-500.0,0.00010963,2]
[361062145,1747227032757,-500.0,0.00010963,2]
[361062146,1747227032767,-500.0,0.00010963,2]
[361062147,1747227032776,-500.0,0.00010963,2]
[361062148,1747227032785,-500.0,0.00010963,2]
[361062149,1747227032794,-500.0,0.00010963,2]
[361062150,1747227032803,-500.0,0.00010963,2]
[361062151,1747227032813,-500.0,0.00010963,2]
[361062152,1747227032822,-500.0,0.00010963,2]
[361062153,1747227032831,-500.0,0.00010963,2]
[361062154,1747227032841,-500.0,0.00010963,2]
[361062155,1747227032850,-500.0,0.00010963,2]
[361062156,1747227032859,-500.0,0.00010963,2]
[361062157,1747227032869,-500.0,0.00010963,2]
[361062158,1747227032878,-500.0,0.00010963,2]
[361062159,1747227032887,-500.0,0.00010963,2]
[361062160,1747227032897,-500.0,0.00010963,2]
[361062161,1747227032907,-500.0,0.00010963,2]
[361062162,1747227032915,-500.0,0.00010963,2]
[361062163,1747227032924,-500.0,0.00010963,2]
[361062164,1747227032933,-500.0,0.00010963,2]
[361062165,1747227032943,-500.0,0.00010963,2]
[361062166,1747227032952,-500.0,0.00010963,2]
[361062167,1747227032961,-500.0,0.00010963,2]
[361062168,1747227032971,-200.0,0.00010963,2]
[361062169,1747227032980,-500.0,0.00010963,2]
[361062170,1747227032990,-500.0,0.00010963,2]
[361062171,1747227033000,-500.0,0.00010963,2]
[361062172,1747227033009,-500.0,0.00010963,2]
[361062173,1747227033019,-500.0,0.00010963,2]
[361062174,1747227033032,-500.0,0.00010963,2]
[361062175,1747227033042,-500.0,0.00010963,2]
[361062176,1747227033052,-500.0,0.00010963,2]
[361062177,1747227033062,-500.0,0.00010963,2]
[361062178,1747227033073,-500.0,0.00010963,2]
[361062179,1747227033083,-500.0,0.00010963,2]
[361062180,1747227033093,-500.0,0.00010963,2]
[361062181,1747227033104,-4603.17500329,0.00010966,2]
[361062182,1747227033119,-13742.62392498,0.00010966,2]
[361062183,1747227033128,-158.5,0.0001097,2]
[361062184,1747227033137,-167.392,0.00010973,2]
[361062185,1747227033146,-426.13040596,0.00010973,2]
[361062186,1747227033159,-500.83772935,0.00010973,2]
[361062187,1747227033169,-500.9829885,0.00010973,2]
[361062188,1747227033179,-500.94197924,0.00010973,2]
[361062189,1747227033188,-504.09856498,0.00010973,2]
[361062190,1747227033198,-500.0,0.00010973,2]
[361062191,1747227033207,-500.0,0.00010973,2]
[361062192,1747227033217,-500.0,0.00010973,2]
[361062193,1747227033226,-500.0,0.00010973,2]
[361062194,1747227033235,-500.0,0.00010973,2]
[361062195,1747227033246,-500.0,0.00010973,2]
[361062196,1747227033256,-500.0,0.00010973,2]
[361062197,1747227033266,-500.0,0.00010973,2]
[361062198,1747227033277,-500.0,0.00010973,2]
[361062199,1747227033287,-500.0,0.00010973,2]
[361062200,1747227033298,-2124.794,0.00010973,2]
[361062201,1747227033308,-151.0,0.00010974,2]
[361062202,1747227033319,-151.0,0.00010974,2]
[361062203,1747227033330,-551.63474627,0.00010974,2]
[361062204,1747227033340,-668.65185757,0.00010974,2]
[361062205,1747227033350,-151.0,0.00010974,2]
[361062206,1747227033360,-301.01925369,0.00010979,2]
[361062207,1747227033370,-400.0,0.00010979,2]
[361062208,1747227033380,-307.20343804,0.00010979,2]
[361062209,1747227033390,-400.0,0.00010979,2]
[361062210,1747227033400,-400.0,0.00010979,2]
[361062211,1747227033415,-400.0,0.00010979,2]
[361062212,1747227033426,-400.0,0.00010979,2]
[361062213,1747227033436,-400.0,0.00010979,2]
[361062214,1747227033446,-400.0,0.00010979,2]
[361062215,1747227033456,-474.13368327,0.00010979,2]
[361062216,1747227033465,-500.0,0.00010979,2]
[361062217,1747227033476,-400.0,0.00010979,2]
[361062218,1747227033486,-496.08272906,0.00010979,2]
[361062219,1747227033496,-400.0,0.00010979,2]
[361062220,1747227033506,-419.55,0.00010979,2]
[361062221,1747227033516,-400.0,0.00010979,2]
[361062222,1747227033526,-400.0,0.00010979,2]
[361062223,1747227033536,-580.07,0.00010979,2]
[361062224,1747227033547,-400.0,0.00010979,2]
[361062225,1747227033557,-469.38,0.00010979,2]
[361062226,1747227033567,-161.96186005,0.00010979,2]
[361062227,1747227033580,-1516.15813995,0.00010979,2]
[361062228,1747227033591,-859.94,0.00010979,2]
[361062229,1747227033602,-323.47077306,0.00010979,2]
[361062230,1747227033615,-82.15922694,0.00010979,2]
[361062231,1747227033624,-400.0,0.00010979,2]
[361062232,1747227033634,-403.05,0.00010979,2]
[361062233,1747227033645,-109.93497414,0.00010979,2]
[361062234,1747227033670,-290.06502586,0.00010979,2]
[361062235,1747227033680,-107.2138197,0.00010979,2]
[361062236,1747227033732,-840.74000002,0.00010979,2]
[361062237,1747227033744,-147.74618028,0.00010979,2]
[361062238,1747227033754,-976.75237818,0.00010979,2]
[361062239,1747227033780,-282.76762182,0.00010979,2]
[361062240,1747227033790,-3338.27,0.00010979,2]
[361062241,1747227033800,-1612.76237818,0.00010979,2]
[361062247,1747227037842,-1399.37762182,0.00010979,2]
[361062248,1747227037851,-400.0,0.00010979,2]
[361062249,1747227037860,-6633.04539282,0.00010979,2]
[361062250,1747227037872,-2605.54460718,0.00010979,2]
[361062251,1747227037881,-400.0,0.00010979,2]
[361062252,1747227037890,-495.5,0.00010979,2]
[361062253,1747227037900,-400.0,0.00010979,2]
[361062254,1747227037911,-864.63,0.00010979,2]
[361062255,1747227037920,-216.755354,0.00010979,2]
[361062256,1747227037930,-3566.332176,0.00010979,2]
[361062257,1747227037939,-400.0,0.00010979,2]
[361062258,1747227037948,-1421.13,0.00010979,2]
[361062259,1747227037957,-5291.05,0.00010979,2]
[361062260,1747227037967,-151.6655458,0.00010979,2]
[361062261,1747227037976,-400.0,0.00010979,2]
[361062262,1747227037985,-1511.3,0.00010979,2]
[361062263,1747227037995,-620.99,0.00010979,2]
[361062264,1747227038004,-400.0,0.00010979,2]
[361062265,1747227038013,-560.692113,0.00010979,2]
[361062266,1747227038026,-933.6,0.00010979,2]
[361062267,1747227038035,-401.57370017,0.00010979,2]
[361062268,1747227038045,-660.26,0.00010979,2]
[361062269,1747227038055,-400.0,0.00010979,2]
[361062270,1747227038068,-1304.53335216,0.0001098,3]
[361062271,1747227038077,-400.0,0.0001098,2]
[361062272,1747227038087,-400.0,0.0001098,2]
[361062273,1747227038097,-400.0,0.0001098,2]
[361062274,1747227038106,-400.0,0.0001098,2]
[361062275,1747227038116,-400.0,0.0001098,2]
[361062276,1747227038126,-261.29285464,0.0001098,2]
[361062277,1747227038135,-401.3231154,0.0001098,2]
[361062278,1747227038145,-2202.92,0.0001098,2]
[361062279,1747227038155,-400.0,0.0001098,2]
[361062280,1747227038165,-176.10458796,0.0001098,2]
[361062281,1747227038175,-400.0,0.0001098,2]
[361062282,1747227038184,-400.0,0.0001098,2]
[361062283,1747227038193,-400.0,0.0001098,2]
[361062284,1747227038203,-400.0,0.0001098,2]
[361062285,1747227038213,-400.0,0.0001098,2]
[361062286,1747227038223,-672.36,0.0001098,2]
[361062287,1747227038232,-411.06,0.0001098,2]
[361062289,1747227038241,-1049.32,0.0001098,2]
[361062291,1747227038251,-400.0,0.0001098,2]
[361062293,1747227038260,-400.0,0.0001098,2]
[361062294,1747227038269,-400.0,0.0001098,2]
[361062296,1747227038278,-752.64,0.0001098,2]